fUSD/lending_fUSD_20260415
["ID","MTS","AMOUNT","RATE_DAILY","PERIOD"]
[420509630,1776186634206,-307.78283004,0.00010699,2]
[420509631,1776186634215,-500.11526413,0.00010699,2]
[420509632,1776186634224,-460.70357528,0.00010699,2]
[420509633,1776186634234,-144101.13040155,0.000107,2]
[420509634,1776186634244,-153.0,0.0001081,3]
[420509635,1776186634254,-500.0,0.00010902,2]
[420509636,1776186634263,-6270.5039779,0.00011099,2]
[420509637,1776186634273,-3184.18966484,0.00011183,2]
[420509638,1776186634283,-6270.50397782,0.00011291,2]
[420509639,1776186634292,-500.0,0.00011452,2]
[420509640,1776186634302,-2351.0,0.00011534,2]
[420509641,1776186634311,-500.0,0.00011589,2]
[420509642,1776186634321,-255.0,0.00011736,2]
[420509643,1776186634331,-6270.50397782,0.00011779,2]
[420509644,1776186634340,-153.0,0.00011828,3]
[420509645,1776186634350,-250.0,0.00011858,2]
[420509646,1776186634359,-9061.53055266,0.000119,2]
[420509647,1776186634369,-190.8392,0.000119,2]
[420509648,1776186634379,-200.0,0.0001202,2]
[420509649,1776186634389,-2000.0,0.00012027,2]
[420509650,1776186634399,-1600.0,0.00012081,2]
[420509651,1776186634409,-500.0,0.00012167,2]
[420509652,1776186634419,-500.0,0.00012167,2]
[420509653,1776186634429,-500.69201092,0.00012167,2]
[420509654,1776186634440,-500.0,0.00012167,2]
[420509655,1776186634450,-458.63773172,0.00012167,2]
[420509656,1776186634462,-500.0,0.00012167,2]
[420509657,1776186634471,-500.0,0.00012167,2]
[420509658,1776186634483,-500.47252773,0.00012167,2]
[420509659,1776186634495,-500.0,0.0001217,2]
[420509660,1776186634505,-500.0,0.0001217,2]
[420509661,1776186634518,-500.0,0.0001217,2]
[420509662,1776186634527,-500.0,0.0001217,2]
[420509663,1776186634538,-6270.50397782,0.00012268,2]
[420509664,1776186634547,-4764.12274476,0.00012366,2]
[420509665,1776186634561,-900.0,0.00012526,2]
[420509666,1776186634571,-600.0,0.000126,4]
[420509667,1776186634582,-2644.66,0.00012663,2]
[420509668,1776186634594,-3292.0,0.00012687,2]
[420509669,1776186634608,-1200.0,0.000127,4]
[420509670,1776186634621,-448.19,0.00012712,2]
[420509671,1776186634633,-500.93469977,0.00012715,2]
[420509672,1776186634643,-171.93182394,0.00012715,2]
[420509673,1776186634657,-1065.01383219,0.00012715,2]
[420509674,1776186634675,-1000.0,0.00012718,2]
[420509675,1776186634684,-1000.0,0.00012718,2]
[420509676,1776186634702,-6270.50397782,0.00012757,2]
[420509677,1776186634719,-540.3482259,0.00012799,2]
[420509678,1776186634730,-1232.84684887,0.00012799,2]
[420509679,1776186634755,-184.13114856,0.00012799,2]
[420509680,1776186634767,-1800.0,0.000128,4]
[420509681,1776186634793,-153.0,0.00012845,3]
[420509682,1776186634811,-433.0,0.0001287,2]
[420509683,1776186634831,-364.30088465,0.00012893,2]
[420509684,1776186634860,-500.0,0.00012893,2]
[420509685,1776186634882,-287.91174805,0.00012893,2]
[420509686,1776186634902,-500.0,0.00012893,2]
[420509687,1776186634915,-500.0,0.00012893,2]
[420509688,1776186634928,-592.7507863,0.00012893,2]
[420509689,1776186634957,-500.0,0.00012893,2]
[420509690,1776186634973,-400.28774062,0.00012893,2]
[420509691,1776186635015,-150.0,0.00012893,2]
[420509692,1776186635031,-33537.73495871,0.00012894,2]
[420509693,1776186635056,-9806.29458652,0.00012894,2]
[420509696,1776186637717,-3903.83753928,0.00012894,2]
[420509697,1776186637939,-578.20924308,0.00012899,2]
[420509698,1776186637961,-141.80530765,0.00012899,2]
[420509699,1776186637976,-58.19469235,0.00012899,2]
[420509700,1776186637997,-1428.38747117,0.00012899,2]
[420509701,1776186638008,-413.41783648,0.00012899,2]
[420509702,1776186638044,-307.70981887,0.00012899,2]
[420509703,1776186638060,-500.0,0.00012899,2]
[420509704,1776186638073,-200.0,0.00012899,2]
[420509705,1776186638091,-174.61919141,0.00012899,2]
[420509706,1776186638109,-272.43098972,0.000129,4]
[420509707,1776186638133,-2127.56901028,0.000129,4]
[420509708,1776186638153,-62.85098972,0.00012954,2]
[420509709,1776186638234,-437.14901028,0.00012954,2]
[420509710,1776186638295,-250.0,0.00013,2]
[420509712,1776186638347,-242.7974,0.000132,2]
[420509714,1776186638374,-206.8756643,0.00013242,2]
[420509716,1776186638396,-1025.97118453,0.00013242,2]
[420509718,1776186638406,-3593.44944749,0.00013245,2]
[420509721,1776186638442,-1051.74850456,0.00013245,2]
[420509724,1776186638455,-1625.30602577,0.00013245,2]
[420509725,1776186638465,-1002.19224822,0.00013266,2]
[420509727,1776186638483,-1000.0,0.00013266,2]
[420509730,1776186638495,-307.142158,0.000133,2]
[420509732,1776186638505,-1481.23780761,0.00013447,2]
[420509734,1776186638518,-181.08010149,0.00013447,2]
[420509736,1776186638532,-540.34822587,0.00013483,2]
[420509737,1776186638542,-507.0,0.000135,2]
[420509740,1776186638553,-2000.0,0.0001353,2]
[420509741,1776186638574,-4948.52679795,0.00013549,2]
[420509744,1776186638589,-1600.0,0.00013592,2]
[420509746,1776186638604,-199.66701123,0.00013598,2]
[420509748,1776186638619,-1232.84684883,0.00013685,2]
[420509750,1776186638632,-500.0,0.00013698,2]
[420509752,1776186638648,-500.0,0.00013698,2]
[420509754,1776186638662,-500.0,0.00013698,2]
[420509756,1776186638676,-410.80494751,0.00013698,2]
[420509758,1776186638692,-500.0,0.00013698,2]
[420509760,1776186638707,-500.0,0.00013698,2]
[420509761,1776186638721,-500.0,0.00013698,2]
[420509762,1776186638736,-500.0,0.00013698,2]
[420509763,1776186638754,-500.0,0.00013698,2]
[420509765,1776186638767,-564.84,0.00013698,2]
[420509767,1776186638790,-16396.51,0.00013699,2]
[420509769,1776186638806,-585.778866,0.00013699,2]
[420509771,1776186638870,-585.778866,0.00013699,2]
[420509773,1776186638978,-585.778866,0.00013699,2]
[420509775,1776186639108,-585.778866,0.00013699,2]
[420509777,1776186639143,-250.381398,0.00013699,2]
[420509779,1776186639156,-250.381398,0.00013699,2]
[420509781,1776186639174,-250.381398,0.00013699,2]
[420509782,1776186639189,-250.381398,0.00013699,2]
[420509784,1776186639202,-500.0,0.00013699,2]
[420509787,1776186639218,-500.0,0.00013699,2]
[420509789,1776186639243,-218.36354914,0.00013699,2]
[420509791,1776186639256,-158.78,0.00013699,2]
[420509793,1776186639267,-471.0,0.00013699,2]
[420509795,1776186639296,-471.0,0.00013699,2]
[420509797,1776186639307,-471.0,0.00013699,2]
[420509799,1776186639343,-471.0,0.00013699,2]
[420509801,1776186639355,-471.0,0.00013699,2]
[420509803,1776186639387,-471.0,0.00013699,2]
[420509805,1776186639403,-471.0,0.00013699,2]
[420509807,1776186639425,-471.0,0.00013699,2]
[420509809,1776186639435,-471.0,0.00013699,2]
[420509811,1776186639450,-471.0,0.00013699,2]
[420509813,1776186639461,-471.0,0.00013699,2]
[420509815,1776186639471,-471.0,0.00013699,2]
[420509817,1776186639480,-471.0,0.00013699,2]
[420509819,1776186639494,-471.0,0.00013699,2]
[420509821,1776186639504,-471.0,0.00013699,2]
[420509823,1776186639513,-471.0,0.00013699,2]
[420509825,1776186639523,-471.0,0.00013699,2]
[420509827,1776186639536,-471.0,0.00013699,2]
[420509828,1776186639547,-471.0,0.00013699,2]
[420509829,1776186639557,-471.0,0.00013699,2]
[420509830,1776186639568,-471.0,0.00013699,2]
[420509831,1776186639578,-471.0,0.00013699,2]
[420509832,1776186639588,-471.0,0.00013699,2]
[420509833,1776186639598,-471.9317217,0.00013699,2]
[420509834,1776186639609,-6270.50397782,0.00013734,2]
[420509835,1776186639619,-160.0,0.00013738,2]
[420509836,1776186639628,-589.607977,0.00013759,7]
[420509837,1776186639638,-1019.215954,0.00013759,7]
[420509838,1776186639648,-160.0,0.00013759,7]
[420509839,1776186639658,-474.02552,0.00013759,7]
[420509840,1776186639668,-788.05104,0.00013759,7]
[420509841,1776186639679,-153.0,0.00013862,3]
[420509842,1776186639689,-275.063403,0.00013863,2]
[420509843,1776186639698,-213.38252,0.00013863,2]
[420509844,1776186639708,-219.498669,0.00013863,2]
[420509845,1776186639719,-152.98789781,0.00013872,2]
[420509846,1776186639729,-160.0,0.00013876,7]
[420509847,1776186639739,-651.493898,0.00013876,7]
[420509848,1776186639749,-1142.987797,0.00013876,7]
[420509849,1776186639759,-1370.64896062,0.0001391,2]
[420509850,1776186639770,-202.9743618,0.0001394,2]
[420509851,1776186639781,-1000.0,0.00013947,2]
[420509852,1776186639791,-457.0,0.00013956,2]
[420509853,1776186639801,-150.00000001,0.00013985,2]
[420509855,1776186639811,-1536.04360649,0.00013995,2]
[420509856,1776186639821,-187.78006525,0.00013995,2]
[420509858,1776186639831,-184.13114854,0.00014,2]
[420509859,1776186639841,-500.0,0.00014,2]
[420509860,1776186639851,-3266.2424811,0.0001404,2]
[420509861,1776186639861,-3271.4112511,0.0001404,2]
[420509862,1776186639872,-23965.2275374,0.0001404,2]
[420509863,1776186639882,-38987.49264154,0.0001404,2]
[420509864,1776186640414,-1864.33988751,0.0001404,2]
[420509865,1776186640444,-274690.70738985,0.0001404,2]
[420509866,1776186640457,-585.778866,0.0001404,2]
[420509867,1776186640480,-585.778866,0.0001404,2]
[420509868,1776186640493,-585.778866,0.0001404,2]
[420509869,1776186640505,-585.778866,0.0001404,2]
[420509870,1776186640522,-250.381398,0.0001404,2]
[420509871,1776186640542,-250.381398,0.0001404,2]
[420509872,1776186640552,-250.381398,0.0001404,2]
[420509873,1776186640567,-250.381398,0.0001404,2]
[420509874,1776186640591,-151.0,0.00014044,2]
[420509875,1776186640601,-500.0,0.00014046,2]
[420509876,1776186640619,-500.0,0.00014046,2]
[420509877,1776186640638,-500.0,0.00014046,2]
[420509878,1776186640649,-500.0,0.00014046,2]
[420509879,1776186640678,-616.16,0.00014046,2]
[420509880,1776186640690,-500.0,0.00014046,2]
[420509881,1776186640720,-500.0,0.00014046,2]
[420509882,1776186640834,-500.0,0.00014046,2]
[420509884,1776186640943,-500.41934487,0.00014073,2]
[420509885,1776186641010,-500.0,0.00014073,2]
[420509886,1776186641064,-500.0,0.00014073,2]
[420509887,1776186641122,-500.0,0.00014073,2]
[420509888,1776186641143,-500.0,0.00014073,2]
[420509889,1776186641172,-502.80931123,0.00014073,2]
[420509890,1776186641187,-500.0,0.00014073,2]
[420509891,1776186641213,-500.0,0.00014073,2]
[420509892,1776186641226,-500.0,0.00014073,2]
[420509893,1776186641249,-5528.94754486,0.00014073,2]
[420509894,1776186641267,-166.66,0.0001411,2]
[420509895,1776186641282,-736.0,0.00014121,2]
[420509896,1776186641310,-1232.84684883,0.00014128,2]
[420509897,1776186641333,-429.39899,0.0001413,2]
[420509898,1776186641353,-151.0,0.00014143,2]
[420509899,1776186641376,-500.0,0.00014144,2]
[420509900,1776186641400,-155.0,0.00014145,2]
[420509901,1776186641424,-12332.385934,0.00014146,2]
[420509902,1776186641452,-151.0,0.00014146,2]
[420509903,1776186641469,-151.0,0.00014146,2]
[420509904,1776186641496,-151.0,0.00014146,2]
[420509905,1776186641523,-151.0,0.00014146,2]
[420509906,1776186641542,-762.31969754,0.00014159,2]
[420509907,1776186641586,-429.399,0.0001416,2]
[420509908,1776186641614,-540.34822587,0.00014166,2]
[420509909,1776186641636,-429.39899,0.0001418,2]
[420509910,1776186641654,-429.399,0.0001421,2]
[420509911,1776186641673,-6270.50397782,0.00014223,2]
[420509912,1776186641690,-429.399,0.0001423,2]
[420509913,1776186641716,-166.66,0.00014247,2]
[420509914,1776186641733,-1000.0,0.00014247,2]
[420509915,1776186641746,-429.39899,0.0001426,2]
[420509916,1776186641767,-1500.0,0.00014308,2]
[420509917,1776186641776,-162.0,0.0001434,2]
[420509918,1776186641786,-1575.0,0.0001434,2]
[420509919,1776186641806,-1575.0,0.0001434,2]
[420509920,1776186641817,-1575.0,0.0001434,2]
[420509921,1776186641827,-1154.0,0.0001434,2]
[420509922,1776186641841,-1039.58,0.00014384,2]
[420509923,1776186641853,-166.66,0.00014384,2]
[420509924,1776186641864,-1575.0,0.00014386,2]
[420509925,1776186641874,-1000.0,0.00014397,2]
[420509926,1776186641894,-209.34,0.000144,2]
[420509927,1776186641904,-804.010878,0.00014447,7]
[420509928,1776186641917,-646.398436,0.00014447,7]
[420509929,1776186641929,-1218.0,0.00014492,2]
[420509930,1776186641939,-926.0,0.00014492,2]
[420509931,1776186641948,-416.0,0.00014492,2]
[420509932,1776186641958,-1331.0,0.00014492,2]
[420509933,1776186641967,-2475.033,0.00014492,2]
[420509934,1776186641978,-192.14681121,0.000145,4]
[420509935,1776186641989,-308.9019,0.000145,2]
[420509936,1776186641998,-995.0,0.00014539,2]
[420509937,1776186642007,-1592.87721993,0.00014543,2]
[420509938,1776186642018,-251.19653255,0.00014543,2]
[420509939,1776186642028,-888.40077,0.00014569,7]
[420509940,1776186642037,-1232.84684883,0.00014571,2]
[420509941,1776186642047,-2900.0,0.00014582,2]
[420509942,1776186642058,-1000.0,0.00014621,2]
[420509943,1776186642071,-1000.0,0.00014621,2]
[420509944,1776186642081,-1002.91031966,0.00014621,2]
[420509945,1776186642090,-605.27161876,0.00014621,2]
[420509946,1776186642101,-1000.0,0.00014621,2]
[420509947,1776186642113,-1000.0,0.00014621,2]
[420509948,1776186642124,-1536.0,0.00014621,5]
[420509949,1776186642133,-1690.0,0.00014621,5]
[420509950,1776186642143,-1356.0,0.00014621,5]
[420509951,1776186642153,-1000.0,0.00014628,2]
[420509952,1776186642163,-995.0,0.00014637,2]
[420509953,1776186642172,-162.0,0.0001466,2]
[420509954,1776186642181,-162.0,0.0001466,2]
[420509955,1776186642190,-1000.0,0.00014692,2]
[420509956,1776186642200,-3000.0,0.000147,5]
[420509957,1776186642210,-995.0,0.00014707,2]
[420509958,1776186642220,-6270.50397782,0.00014711,2]
[420509959,1776186642229,-995.0,0.00014732,2]
[420509960,1776186642239,-5943.77680031,0.00014732,2]
[420509961,1776186642249,-995.0,0.00014735,2]
[420509962,1776186642259,-995.0,0.00014751,2]
[420509963,1776186642268,-995.0,0.00014756,2]
[420509964,1776186642278,-507.0,0.00014779,3]
[420509965,1776186642289,-1500.0,0.00014795,2]
[420509966,1776186642299,-995.0,0.00014796,2]
[420509967,1776186642309,-600.0,0.000148,5]
[420509968,1776186642320,-995.0,0.00014815,2]
[420509970,1776186642329,-995.0,0.00014833,2]
[420509973,1776186642339,-995.0,0.00014848,2]
[420509976,1776186642349,-540.34822587,0.0001485,2]
[420509978,1776186642358,-995.0,0.00014856,2]
[420509980,1776186642367,-995.0,0.00014878,2]
[420509981,1776186642377,-153.0,0.00014879,3]
[420509983,1776186642386,-995.0,0.00014891,2]
[420509984,1776186642396,-995.0,0.00014899,2]
[420509985,1776186642405,-600.0,0.000149,5]
[420509986,1776186642415,-995.0,0.0001491,2]
[420509987,1776186642425,-7511.9855745,0.00014933,2]
[420509988,1776186642434,-995.0,0.0001495,2]
[420509989,1776186642444,-2000.0,0.00014953,2]
[420509990,1776186642454,-995.0,0.00014958,2]
[420509991,1776186642464,-1000.0,0.00014975,2]
[420509992,1776186642474,-162.0,0.0001498,2]
[420509993,1776186642484,-162.0,0.0001498,2]
[420509994,1776186642493,-995.0,0.00014988,2]
[420509995,1776186642503,-282.16,0.00014991,2]
[420509996,1776186642513,-179.507,0.00014994,2]
[420509997,1776186642523,-7592.6094812,0.00015,7]
[420509998,1776186642532,-627.38844667,0.00015,2]
[420509999,1776186642541,-165.4886,0.00015,2]
[420510000,1776186642551,-1579.0,0.00015,2]
[420510001,1776186642561,-300.0,0.00015,2]
[420510002,1776186642571,-2595.241,0.00015,2]
[420510003,1776186642580,-1232.84684883,0.00015014,2]
[420510004,1776186642590,-282.15,0.00015019,2]
[420510005,1776186642600,-2000.0,0.00015033,2]
[420510006,1776186642610,-502.0,0.00015037,2]
[420510007,1776186642619,-151.0,0.00015068,2]
[420510008,1776186642629,-151.0,0.00015068,2]
[420510009,1776186642638,-151.0,0.00015068,2]
[420510010,1776186642648,-284.563213,0.00015068,2]
[420510011,1776186642657,-1039.58,0.00015068,2]
[420510012,1776186642667,-328.95,0.00015068,2]
[420510013,1776186642676,-309.625511,0.00015068,2]
[420510014,1776186642686,-309.625511,0.00015068,2]
[420510015,1776186642696,-309.625511,0.00015068,2]
[420510016,1776186642705,-309.625511,0.00015068,2]
[420510017,1776186642715,-309.625511,0.00015068,2]
[420510018,1776186642725,-309.625511,0.00015068,2]
[420510019,1776186642734,-309.625511,0.00015068,2]
[420510020,1776186642744,-309.625511,0.00015068,2]
[420510021,1776186642753,-200.0,0.00015068,2]
[420510022,1776186642767,-995.0,0.00015088,2]
[420510023,1776186642777,-502.0,0.00015094,2]
[420510024,1776186642786,-1600.0,0.00015102,2]
[420510025,1776186642798,-995.0,0.00015104,2]
[420510026,1776186642811,-995.0,0.00015111,2]
[420510027,1776186642821,-200.0,0.00015115,2]
[420510028,1776186642834,-203.617,0.00015115,2]
[420510029,1776186642851,-240.024,0.00015115,2]
[420510030,1776186642860,-163.699,0.00015115,2]
[420510031,1776186642874,-250.0,0.00015115,2]
[420510032,1776186642900,-156.347,0.00015115,2]
[420510033,1776186642912,-193.775,0.00015115,2]
[420510034,1776186642943,-166.306,0.00015115,2]
[420510035,1776186642965,-215.171,0.00015115,2]
[420510036,1776186642997,-250.0,0.00015115,2]
[420510037,1776186643033,-241.039,0.00015115,2]
[420510038,1776186643065,-182.0,0.00015115,2]
[420510039,1776186643128,-1047.0,0.00015115,2]
[420510040,1776186643230,-1459.96,0.00015115,2]
[420510041,1776186643295,-622.0,0.00015115,2]
[420510042,1776186643364,-3527.0,0.00015115,2]
[420510043,1776186643397,-1264.0,0.00015115,2]
[420510044,1776186643436,-986.73,0.00015122,2]
[420510045,1776186643460,-337.99121928,0.00015129,2]
[420510046,1776186643485,-502.0,0.00015132,2]
[420510047,1776186643511,-1000.0,0.00015167,2]
[420510048,1776186643527,-267.10251554,0.00015168,2]
[420510049,1776186643542,-1500.0,0.00015168,2]
[420510050,1776186643574,-1500.0,0.00015168,2]
[420510051,1776186643606,-1500.0,0.00015168,2]
[420510052,1776186643623,-7511.9855745,0.000152,2]
[420510053,1776186643641,-309.625511,0.000152,2]
[420510054,1776186643666,-309.625511,0.000152,2]
[420510055,1776186643681,-309.625511,0.000152,2]
[420510056,1776186643711,-309.625511,0.000152,2]
[420510057,1776186643722,-6270.50397782,0.000152,2]
[420510058,1776186643746,-502.0,0.00015203,2]
[420510059,1776186643762,-152.85468521,0.00015207,2]
[420510060,1776186643773,-150.0,0.00015216,2]
[420510061,1776186643803,-1500.0,0.0001524,2]
[420510062,1776186643814,-151.0,0.00015251,2]
[420510063,1776186643850,-151.0,0.00015251,2]
[420510064,1776186643860,-502.0,0.00015256,2]
[420510065,1776186643890,-500.0,0.00015273,2]
[420510066,1776186643900,-500.0,0.00015273,2]
[420510067,1776186643925,-500.0,0.00015273,2]
[420510068,1776186643942,-500.0,0.00015273,2]
[420510069,1776186643958,-500.0,0.00015273,2]
[420510070,1776186643986,-287.31777848,0.00015273,2]
[420510071,1776186644010,-382.95194864,0.00015273,2]
[420510072,1776186644053,-500.0,0.00015273,2]
[420510073,1776186644108,-500.0,0.00015273,2]
[420510074,1776186644148,-190.28940201,0.00015273,2]
[420510075,1776186644176,-500.0,0.00015273,2]
[420510076,1776186644193,-454.95,0.00015286,2]
[420510077,1776186644226,-582.55800769,0.0001529,2]
[420510078,1776186644245,-151.0,0.00015297,2]
[420510079,1776186644271,-402586.08934679,0.000153,2]
[420510083,1776186645646,-372.93415314,0.000153,2]
[420510084,1776186645658,-469.73578931,0.000153,2]
[420510085,1776186645670,-974.33676083,0.000153,2]
[420510086,1776186646144,-1189.56467209,0.000153,2]
[420510087,1776186646190,-523.8481509,0.000153,2]
[420510088,1776186646315,-3300.0,0.000153,2]
[420510089,1776186646328,-550.34282137,0.000153,2]
[420510090,1776186647361,-151.0,0.0001275,2]
[420510091,1776186647378,-169.99,0.00012788,2]
[420510092,1776186647395,-6027.0,0.00014492,2]
[420510093,1776186647405,-184.13114854,0.000152,2]
[420510094,1776186647422,-36217.55135446,0.000153,2]
[420510095,1776186647443,-1434.61950838,0.000153,2]
[420510096,1776186647503,-4452.09999987,0.000153,2]
[420510097,1776186647527,-4150.7567732,0.000153,2]
[420510098,1776186647550,-400.88914376,0.000153,2]
[420510099,1776186647605,-1180.95304529,0.000153,2]
[420510101,1776186651542,-6543.31158763,0.000153,2]
[420510102,1776186651859,-7553.33332383,0.000153,2]
[420510103,1776186651872,-747.52,0.000153,2]
[420510104,1776186651885,-608.21731146,0.000153,2]
[420510105,1776186651902,-167238.69036538,0.000153,2]
[420510106,1776186651915,-16084.85333337,0.000153,2]
[420510107,1776186651927,-345.53625,0.000153,2]
[420510108,1776186651940,-514.38646538,0.000153,2]
[420510109,1776186651957,-827.75733248,0.000153,2]
[420510110,1776186651977,-540.6083417,0.000153,2]
[420510111,1776186652085,-2269.12968483,0.000153,2]
[420510112,1776186652097,-151.0,0.000153,2]
[420510113,1776186652108,-106.8192838,0.000153,2]
[420510125,1776187003360,150.0,0.00013372,120]
[420510126,1776187049011,2007.3,0.000165,30]
[420510127,1776187106511,2000.0,0.000165,30]
[420510128,1776187342672,3011.0,0.000165,30]
[420510139,1776187833004,-1500.0,0.00012817,2]
[420510140,1776187833014,-329.0,0.00012817,2]
[420510141,1776187833027,-250.0,0.00013,2]
[420510142,1776187833043,-578.20924308,0.00013,2]
[420510143,1776187833055,-265.15152305,0.00013141,2]
[420510144,1776187834052,-67.64847695,0.00013141,2]
[420510145,1776187834078,-161.54,0.00013181,2]
[420510146,1776187834089,-300.0,0.00013236,2]
[420510147,1776187834099,-2000.0,0.00013238,2]
[420510148,1776187834130,-200.0,0.00013279,2]
[420510149,1776187834142,-150.0,0.00013372,2]
[420510150,1776187834169,-13475.31,0.00013414,2]
[420510151,1776187834179,-4882.91737463,0.00013428,2]
[420510152,1776187834192,-216.25,0.00013478,2]
[420510153,1776187834213,-179.508,0.000135,2]
[420510154,1776187834224,-2076.193,0.000135,2]
[420510155,1776187834234,-400.0,0.000135,4]
[420510156,1776187834254,-507.0,0.000135,2]
[420510157,1776187834265,-454.95892855,0.00013572,2]
[420510158,1776187834275,-1428.38747117,0.0001358,2]
[420510159,1776187834288,-721.12765535,0.0001358,2]
[420510160,1776187834302,-200.0,0.0001358,2]
[420510161,1776187834312,-500.0,0.0001358,2]
[420510162,1776187834323,-151.0,0.0001358,2]
[420510163,1776187834334,-151.0,0.0001358,2]
[420510164,1776187834347,-151.0,0.0001358,2]
[420510165,1776187834360,-1738.21542287,0.00013588,2]
[420510166,1776187834379,-1933.86916611,0.00013588,2]
[420510167,1776187834394,-1271.14161176,0.00013588,2]
[420510168,1776187834413,-981.56410672,0.00013588,2]
[420510169,1776187834425,-1009.784997,0.00013588,2]
[420510170,1776187834841,-1605.99198305,0.00013588,2]
[420510171,1776187834903,-571.68055395,0.00013588,2]
[420510173,1776187838015,-1313.60996539,0.00013588,2]
[420510174,1776187838041,-4134.16891772,0.00013588,2]
[420510175,1776187838064,-451.15504761,0.00013588,2]
[420510176,1776187838100,-3155.72122097,0.00013588,2]
[420510177,1776187838380,-11979.75265951,0.00013588,2]
[420510200,1776187840027,-4368.552554,0.00013588,2]
[420510201,1776187840362,-2264.03179334,0.00013588,2]
[420510202,1776187840387,-537.2699944,0.000136,4]
[420510203,1776187840657,-262.7300056,0.000136,4]
[420510204,1776187840669,-166.66,0.00013693,2]
[420510205,1776187840686,-313.87080747,0.00013699,2]
[420510206,1776187840701,-101.95919253,0.00013699,2]
[420510207,1776187840713,-200.0,0.00013699,2]
[420510208,1776187840731,-233.98619579,0.000137,5]
[420510209,1776187840745,-1066.01380421,0.000137,5]
[420510210,1776187840757,-150.0,0.00013749,2]
[420510211,1776187840770,-500.0,0.00013749,2]
[420510212,1776187840780,-500.0,0.00013749,2]
[420510213,1776187840790,-500.0,0.00013749,2]
[420510214,1776187840803,-500.0,0.00013749,2]
[420510215,1776187840817,-500.0,0.00013749,2]
[420510216,1776187840827,-500.0,0.00013749,2]
[420510217,1776187840838,-500.0,0.00013749,2]
[420510218,1776187840855,-500.0,0.00013749,2]
[420510219,1776187840865,-500.0,0.00013749,2]
[420510220,1776187840875,-500.0,0.00013749,2]
[420510221,1776187840885,-500.0,0.00013749,2]
[420510222,1776187840898,-500.0,0.00013749,2]
[420510223,1776187840908,-500.0,0.00013749,2]
[420510224,1776187840918,-500.0,0.00013749,2]
[420510225,1776187840930,-500.0,0.00013749,2]
[420510226,1776187840944,-500.0,0.00013749,2]
[420510227,1776187840954,-500.0,0.00013749,2]
[420510228,1776187840967,-500.0,0.00013749,2]
[420510229,1776187840976,-500.0,0.00013749,2]
[420510230,1776187840987,-500.0,0.00013749,2]
[420510231,1776187841002,-500.0,0.00013749,2]
[420510232,1776187841011,-500.0,0.00013749,2]
[420510233,1776187841022,-500.0,0.00013749,2]
[420510234,1776187841033,-500.0,0.00013749,2]
[420510235,1776187841046,-500.0,0.00013749,2]
[420510236,1776187841057,-500.0,0.00013749,2]
[420510237,1776187841068,-500.0,0.00013749,2]
[420510238,1776187841079,-500.0,0.00013749,2]
[420510239,1776187841088,-500.0,0.00013749,2]
[420510240,1776187841101,-500.0,0.00013749,2]
[420510241,1776187841113,-500.0,0.00013749,2]
[420510242,1776187841123,-500.0,0.00013749,2]
[420510243,1776187841134,-500.0,0.00013749,2]
[420510244,1776187841146,-500.0,0.00013749,2]
[420510245,1776187841158,-500.0,0.00013749,2]
[420510246,1776187841170,-500.0,0.00013749,2]
[420510247,1776187841182,-500.0,0.00013749,2]
[420510248,1776187841193,-500.0,0.00013749,2]